bitfinex/quotes_ETHUSD_20220310
["timestamp","ask_amount","ask_price","bid_price","bid_amount"]
[1646944584586,0.95962,2607.1,2607.0,0.04969306]
[1646944584789,9.55534898,2607.2,2607.0,0.02271174]
[1646944585692,1.91936,2607.1,2607.0,0.02650377]
[1646944585934,5.41936,2607.1,2607.0,0.02650377]
[1646944586434,1.91936,2607.1,2607.0,0.02650377]
[1646944586636,1.91936,2607.1,2607.0,0.02271174]
[1646944587034,5.41936,2607.1,2607.0,0.02271174]
[1646944587235,1.91936,2607.1,2607.0,0.02271174]
[1646944587835,5.41936,2607.1,2607.0,0.02271174]
[1646944589437,1.91936,2607.1,2607.0,0.02271174]
[1646944589883,5.41936,2607.1,2607.0,0.02271174]
[1646944590080,1.91936,2607.1,2607.0,0.09578004]
[1646944591281,5.41936,2607.1,2607.0,0.09578004]
[1646944591881,1.91936,2607.1,2607.0,0.09578004]
[1646944592283,5.41936,2607.1,2607.0,0.09578004]
[1646944592887,1.91936,2607.1,2607.0,0.09578004]
[1646944593081,5.41936,2607.1,2607.0,0.09578004]
[1646944593736,1.91936,2607.1,2607.0,0.09578004]
[1646944593935,5.41936,2607.1,2607.0,0.09578004]
[1646944594537,5.41936,2607.1,2607.0,0.14443808]
[1646944598781,1.91936,2607.1,2607.0,0.14443808]
[1646944599380,2.34366231,2607.1,2607.0,0.14443808]
[1646944599784,5.84366231,2607.1,2607.0,0.14443808]
[1646944601034,2.34366231,2607.1,2607.0,0.14443808]
[1646944602031,5.84366231,2607.1,2607.0,0.14443808]
[1646944604430,5.89508127,2607.1,2607.0,0.14443808]
[1646944604887,5.89508127,2607.1,2607.0,0.0401536]
[1646944609129,1.43536127,2607.1,2607.0,0.0401536]
[1646944609532,0.42430231,2607.1,2607.0,0.0401536]
[1646944610033,0.42430231,2607.1,2607.0,0.08809797]
[1646944611238,1.60185205,2607.1,2607.0,0.08809797]
[1646944612678,0.42430231,2607.1,2607.0,0.08809797]
[1646944613788,0.42430231,2607.1,2607.0,0.13303999]
[1646944614484,3.92430231,2607.1,2607.0,0.13303999]
[1646944614685,0.42430231,2607.1,2607.0,0.13303999]
[1646944615089,3.92430231,2607.1,2607.0,0.13303999]
[1646944615386,0.42430231,2607.1,2607.0,0.13303999]
[1646944618255,1.13067222,2607.1,2607.0,0.13303999]
[1646944618654,4.63067222,2607.1,2607.0,0.13303999]
[1646944619255,1.13067222,2607.1,2607.0,0.13303999]
[1646944620484,0.42430231,2607.1,2607.0,0.13303999]
[1646944621285,3.92430231,2607.1,2607.0,0.13303999]
[1646944621690,3.92454007,2607.1,2607.0,0.13303999]
[1646944622489,0.42454007,2607.1,2607.0,0.13303999]
[1646944623929,0.42454007,2607.1,2607.0,1.2849294]
[1646944625034,0.42454007,2607.1,2607.0,0.13303999]
[1646944625235,0.42454007,2607.1,2607.0,1.28493945]
[1646944625536,0.53785178,2606.7,2606.6,0.07756918]
[1646944625735,0.96239185,2606.7,2606.6,1.23291595]
[1646944628380,0.96239185,2606.7,2606.6,1.15534677]
[1646944628881,1.92209185,2606.7,2606.6,1.15534677]
[1646944629083,1.92209185,2606.7,2606.5,1.15978472]
[1646944629286,1.49755178,2606.7,2606.6,1.15534677]
[1646944629481,1.91908767,2606.7,2606.6,1.15534677]
[1646944629686,0.95938767,2606.7,2606.6,1.27899606]
[1646944633035,4.45938767,2606.7,2606.6,1.27899606]
[1646944633436,4.45938767,2606.7,2606.6,0.12364929]
[1646944633636,8.25938767,2606.7,2606.6,0.12364929]
[1646944634240,8.25938767,2606.7,2606.6,0.1849801]
[1646944634442,8.25938767,2606.7,2606.6,0.1236801]
[1646944634689,4.75938767,2606.7,2606.6,0.1236801]
[1646944634890,5.4660864,2606.7,2606.6,0.1236801]
[1646944635089,4.75938767,2606.7,2606.6,1.27834789]
[1646944638934,4.75938767,2606.7,2606.6,1.39689179]
[1646944642580,8.25938767,2606.7,2606.6,1.33769179]
[1646944642780,4.80397113,2606.7,2606.6,1.33769179]
[1646944643184,5.51066986,2606.7,2606.6,1.33769179]
[1646944644385,5.51066986,2606.7,2606.6,1.33546753]
[1646944644786,8.30397113,2606.7,2606.6,1.33546753]
[1646944645093,4.75938767,2606.7,2606.6,1.33546753]
[1646944645486,4.75938767,2606.7,2606.6,0.18079974]
[1646944645688,4.75938767,2606.7,2606.6,1.33549316]
[1646944645930,4.75938767,2606.7,2606.6,1.33549231]
[1646944646130,4.75938767,2606.7,2606.6,1.33549211]
[1646944646330,4.75938767,2606.7,2606.6,1.33548344]
[1646944646530,4.75938767,2606.7,2606.6,0.18079974]
[1646944646931,4.75938767,2606.7,2606.6,1.33550506]
[1646944647131,4.75938767,2606.7,2606.6,0.18079974]
[1646944647331,4.75938767,2606.7,2606.6,1.33548318]
[1646944647531,4.75938767,2606.7,2606.6,0.18079974]
[1646944647930,4.75938767,2606.7,2606.6,1.2384882]
[1646944649682,4.75938767,2606.7,2606.6,1.3315805]
[1646944654030,4.75938767,2606.7,2606.6,1.29562625]
[1646944654232,4.75938767,2606.7,2606.6,1.21687451]
[1646944656336,5.71910767,2606.7,2606.6,1.21687451]
[1646944658578,5.71910767,2606.7,2606.6,1.27450024]
[1646944658981,9.21910767,2606.7,2606.6,1.27450024]
[1646944659182,5.71910767,2606.7,2606.6,1.27450024]
[1646944659784,6.4258064,2606.7,2606.6,1.27450024]
[1646944661039,9.9258064,2606.7,2606.6,1.21690024]
[1646944661633,9.9258064,2606.7,2606.6,0.06226918]
[1646944661835,21.6258064,2606.7,2606.6,0.06226918]
[1646944662034,22.53328147,2606.7,2606.6,1.21866802]
[1646944662334,7.33328147,2606.7,2606.6,1.21866802]
[1646944662534,6.4258064,2606.7,2606.6,1.21866802]
[1646944663234,9.9258064,2606.7,2606.6,1.21866802]
[1646944663639,9.9258064,2606.7,2606.6,0.06226918]
[1646944664435,9.9258064,2606.7,2606.6,0.17783333]
[1646944664691,9.92478279,2606.7,2606.6,0.17783333]
[1646944664892,10.83225786,2606.7,2606.6,0.17783333]
[1646944665090,10.83225786,2606.7,2606.6,1.33414134]
[1646944665291,6.42478279,2606.7,2606.6,1.33414134]
[1646944665690,6.42478279,2606.7,2606.6,0.17783333]
[1646944667197,6.72478279,2606.7,2606.6,0.17783333]
[1646944667493,6.42478279,2606.7,2606.6,0.17783333]
[1646944667694,5.71910767,2606.7,2606.6,0.17783333]
[1646944667893,5.71910767,2606.7,2606.6,1.33996208]
[1646944668093,5.71910767,2606.7,2606.6,1.33994018]
[1646944668329,5.71910767,2606.7,2606.6,1.33995862]
[1646944668531,5.71910767,2606.7,2606.6,1.33995922]
[1646944668733,5.71910767,2606.7,2606.6,1.3399587]
[1646944668936,5.71910767,2606.7,2606.6,0.17783333]
[1646944669133,5.71910767,2606.7,2606.6,1.33995715]
[1646944669335,5.71910767,2606.7,2606.6,0.17783333]
[1646944669535,5.71910767,2606.7,2606.6,1.33999812]
[1646944669742,5.71910767,2606.7,2606.6,0.17783333]
[1646944669939,5.74885825,2606.7,2606.6,0.11993797]
[1646944670341,5.74885825,2606.7,2606.6,1.2821979]
[1646944670542,5.74885825,2606.7,2606.6,0.11993797]
[1646944670743,5.74885825,2606.7,2606.6,1.28220693]
[1646944670942,5.74885825,2606.7,2606.6,0.11993797]
[1646944671144,5.74885825,2606.7,2606.6,1.28220089]
[1646944671347,5.74885825,2606.7,2606.6,0.11993797]
[1646944671546,5.74885825,2606.7,2606.6,1.28231015]
[1646944671744,5.74885825,2606.7,2606.6,0.11993797]
[1646944671745,6.45453337,2606.7,2606.6,0.11993797]
[1646944672084,5.74885825,2606.7,2606.6,0.11993797]
[1646944672281,5.74885825,2606.7,2606.6,0.02302592]
[1646944672483,5.74885825,2606.7,2606.6,1.18541793]
[1646944673987,6.45453337,2606.7,2606.6,1.18541793]
[1646944674189,6.45453337,2606.7,2606.6,0.02302592]
[1646944674385,5.74885825,2606.7,2606.6,0.12098682]
[1646944675489,6.45560272,2606.7,2606.6,0.12098682]
[1646944676431,24.24882899,2606.7,2606.6,0.06108682]
[1646944676630,21.94062899,2606.7,2606.6,0.06108682]
[1646944677032,22.84810406,2606.7,2606.6,0.06108682]
[1646944679030,19.84813332,2606.7,2606.6,0.06108682]
[1646944679435,19.84813332,2606.7,2606.6,0.06103422]
[1646944680287,8.14813332,2606.7,2606.6,0.06103422]
[1646944680488,7.24065825,2606.7,2606.6,0.06103422]
[1646944681387,11.45633332,2606.7,2606.6,0.06103422]
[1646944681588,52.0,2606.6,2605.7,0.70625069]
[1646944681789,52.0,2606.6,2606.1,0.01653399]
[1646944681790,1.66655304,2606.3,2606.1,0.01653399]
[1646944681996,16.32803893,2606.2,2606.1,0.01653399]
[1646944682389,16.62153589,2606.2,2606.1,0.01653399]
[1646944682588,17.08453589,2606.2,2606.1,0.01653399]
[1646944682789,0.96014,2605.9,2605.2,0.70767735]
[1646944682989,0.96014,2605.9,2605.1,3.38107584]
[1646944682990,6.54847556,2605.8,2605.3,1.1554603]
[1646944683190,6.54847556,2605.8,2604.9,4.9511]
[1646944683191,0.70642967,2605.5,2605.2,1.1554603]
[1646944683432,0.70642967,2605.5,2604.8,0.07994502]
[1646944683433,0.42153589,2605.4,2604.8,0.07994502]
[1646944683632,0.42153589,2605.4,2604.9,1.15476221]
[1646944683832,3.72150663,2605.4,2604.9,1.15476221]
[1646944684032,4.92153589,2605.3,2604.9,1.15476221]
[1646944684234,1.09950987,2605.0,2604.9,1.15476221]
[1646944684436,1.52104576,2605.0,2604.9,1.15476221]
[1646944684641,1.52104576,2605.0,2604.5,1.15476221]
[1646944684840,0.42153589,2604.9,2604.5,1.15476221]
[1646944685438,0.42153589,2604.9,2604.6,0.00443195]
[1646944685939,1.38200589,2604.9,2604.6,0.00443195]
[1646944686139,1.38200589,2604.9,2604.7,1.15476221]
[1646944686140,0.96047,2604.8,2604.7,1.15476221]
[1646944686538,0.96047,2604.8,2604.6,0.00443195]
[1646944686739,0.96047,2604.8,2604.7,1.15476221]
[1646944687779,0.96047,2604.8,2604.6,0.00443195]
[1646944687979,0.96047,2604.8,2604.7,1.15476221]
[1646944689080,0.96047,2604.8,2604.6,0.00443195]
[1646944689691,3.5,2604.7,2604.6,0.00443195]
[1646944689887,3.5,2604.7,2604.1,0.04129056]
[1646944689888,0.1918,2604.7,2604.1,0.04129056]
[1646944690085,0.1918,2604.7,2604.2,1.14996929]
[1646944690086,0.96068,2604.6,2604.2,1.14996929]
[1646944690287,0.96068,2604.6,2604.2,1.11716797]
[1646944690486,0.96068,2604.6,2604.2,0.01719868]
[1646944690689,1.82674335,2604.6,2604.2,0.01719868]
[1646944690928,2.78741555,2604.6,2604.2,0.01719868]
[1646944691129,3.74809555,2604.6,2604.1,0.04129056]
[1646944691330,3.74809555,2604.6,2604.3,0.00429923]
[1646944691331,0.96063,2604.5,2604.3,0.00429923]
[1646944691529,0.96063,2604.4,2604.3,0.00429923]
[1646944692133,17.16133442,2604.4,2604.3,0.00429923]
[1646944692336,0.00230135,2604.2,2604.1,0.04129056]
[1646944692531,12.70556259,2604.2,2604.1,0.04129056]
[1646944692931,17.20131409,2604.2,2604.1,0.04129056]
[1646944693831,13.70131409,2604.2,2604.1,0.04129056]
[1646944694033,2.00131409,2604.2,2604.1,0.04129056]
[1646944694232,1.00556259,2604.2,2604.1,0.04129056]
[1646944694434,0.00230135,2604.2,2604.1,0.04129056]
[1646944697988,0.00230135,2604.2,2604.1,0.05428401]
[1646944699231,0.03116441,2604.2,2604.1,0.21974986]
[1646944700536,1.03116441,2604.2,2604.1,0.21974986]
[1646944702081,1.03116441,2604.2,2604.1,1.43550057]
[1646944702282,10.75936,2604.9,2604.2,0.0848423]
[1646944702283,3.8,2604.9,2604.2,0.0848423]
[1646944703182,3.8,2604.9,2604.3,1.34319]
[1646944703382,3.8,2604.9,2604.8,0.99251527]
[1646944703582,3.8,2604.9,2604.8,1.07863206]
[1646944708433,3.8,2604.9,2604.8,0.08611679]
[1646944708633,3.8,2604.9,2604.7,0.00427524]
[1646944709237,3.8,2604.9,2604.4,0.07199705]
[1646944709434,3.8,2604.9,2604.7,0.00411906]
[1646944709885,3.8,2604.9,2604.8,0.2078344]
[1646944714335,3.8,2604.9,2604.8,0.1563235]
[1646944717786,2.11303788,2604.9,2604.8,0.1563235]
[1646944719084,2.11303788,2604.9,2604.8,1.17809057]
[1646944719486,2.11303788,2604.9,2604.8,2.2945819]
[1646944720290,2.11303788,2604.9,2604.8,1.22094114]
[1646944721834,3.28474369,2604.9,2604.8,1.22094114]
[1646944722836,2.11303788,2604.9,2604.8,1.22094114]
[1646944724589,2.56315629,2604.9,2604.8,1.16915434]
[1646944727396,2.11303788,2604.9,2604.8,1.16915434]
[1646944727596,2.56323665,2604.9,2604.8,1.16915434]
[1646944731640,2.56339477,2604.9,2604.8,1.17427664]
[1646944740898,0.42605337,2604.9,2604.8,1.17427664]
[1646944741597,0.90856064,2604.9,2604.8,1.17427664]
[1646944752236,1.61499031,2604.9,2604.8,1.17427664]
[1646944752437,0.90856064,2604.9,2604.8,1.17427664]
[1646944763692,0.90856064,2604.9,2604.8,1.25096666]
[1646944764191,0.9100808,2604.9,2604.8,1.25096666]
[1646944764393,0.42605337,2604.9,2604.8,1.25096666]
[1646944764591,0.91004211,2604.9,2604.8,1.25096666]
[1646944770792,0.91004211,2604.9,2604.8,1.17427664]
[1646944773349,0.91004211,2604.9,2604.8,0.05266301]
[1646944773536,0.91004211,2604.9,2604.8,1.11221126]
[1646944774539,0.91004211,2604.9,2604.8,1.1428437]
[1646944788937,0.91004211,2604.9,2604.8,1.0928437]
[1646944789941,0.91004211,2604.9,2604.8,1.11030037]
[1646944791544,0.70782819,2605.2,2604.8,4.61030037]
[1646944791746,0.70782819,2605.4,2604.8,3.54808911]
[1646944791944,0.70782819,2605.5,2604.9,0.07039104]
[1646944792189,0.94613442,2605.7,2604.9,0.07039104]
[1646944792190,0.70782819,2605.7,2605.1,0.07201365]
[1646944792389,3.8,2605.2,2605.1,4.28000964]
[1646944792589,0.70782819,2605.9,2605.3,0.95971]
[1646944792789,0.70782819,2605.9,2605.5,0.08342776]
[1646944793395,0.70782819,2605.9,2605.6,0.00413677]
[1646944793591,0.70782819,2606.0,2605.9,1.00505838]
[1646944793791,0.70782819,2606.1,2605.9,1.00505838]
[1646944794192,0.1918,2606.4,2605.9,1.00505838]
[1646944794193,0.70782819,2606.2,2606.0,3.5]
[1646944794591,0.70782819,2606.2,2605.9,1.00505838]
[1646944795195,0.70782819,2606.2,2605.9,1.96475898]
[1646944795495,0.70782819,2606.3,2605.9,1.00505838]
[1646944798549,0.70782819,2606.4,2605.9,1.00505838]
[1646944799244,0.70782819,2606.4,2605.9,4.50505838]
[1646944799692,0.70782819,2606.4,2606.1,0.09005477]
[1646944799893,0.70782819,2606.6,2606.1,0.09005477]
[1646944800694,0.70782819,2606.5,2606.1,0.09005477]
[1646944801098,0.70782819,2606.5,2606.1,3.59005477]
[1646944801295,0.70782819,2606.6,2606.1,3.59005477]
[1646944801894,0.70782819,2606.6,2606.1,0.09005477]
[1646944802295,0.70782819,2606.6,2606.1,1.04968217]
[1646944802698,0.76060907,2606.7,2606.1,1.04968217]
[1646944803095,3.8,2606.6,2606.1,1.04968217]
[1646944803353,3.8,2606.6,2606.1,1.12963718]
[1646944803542,3.8,2606.6,2606.1,2.08917718]
[1646944803748,3.8,2606.6,2606.1,1.12963718]
[1646944804647,3.8,2606.6,2606.1,2.00920217]
[1646944804848,3.8,2606.6,2606.3,1.040163]
[1646944805049,3.8,2606.6,2606.4,0.07494151]
[1646944806253,3.8,2606.6,2606.3,1.00486895]
[1646944806254,3.8,2606.6,2606.3,0.04538755]
[1646944807587,3.5,2606.5,2606.3,0.04538755]
[1646944808187,3.85418544,2606.6,2606.3,0.04538755]
[1646944808990,3.5,2606.5,2606.3,0.04538755]
[1646944809388,0.04618988,2606.4,2606.3,0.04538755]
[1646944810190,0.04618988,2606.4,2606.2,0.04535072]
[1646944811246,11.74618988,2606.4,2606.2,0.04535072]
[1646944811442,3.73569614,2606.3,2606.2,0.04535072]
[1646944811645,4.89961401,2606.3,2606.2,0.04535072]
[1646944812041,4.19178582,2606.3,2606.2,0.04535072]
[1646944812645,15.89178582,2606.3,2606.2,0.04535072]
[1646944813043,11.7,2606.1,2605.7,0.01657772]
[1646944813245,0.0479089,2605.9,2605.7,0.01657772]
[1646944813446,0.45608968,2605.8,2605.7,0.01657772]
[1646944813645,4.91623968,2605.8,2605.0,1.1814]
[1646944813845,4.91623968,2605.8,2605.1,1.11062126]
[1646944813846,0.5055228,2605.7,2605.1,1.11062126]
[1646944814047,0.45608968,2605.6,2605.5,0.00414441]
[1646944814446,1.55170793,2605.6,2605.5,0.00414441]
[1646944814893,1.55170793,2605.6,2604.9,0.08617628]
[1646944815093,0.45608968,2605.5,2605.0,1.11070496]
[1646944816295,0.45608968,2605.5,2605.1,0.00414811]
[1646944817395,0.45608968,2605.5,2605.0,1.11070496]
[1646944817595,0.45608968,2605.5,2605.2,0.00414808]
[1646944818439,1.09561825,2605.6,2605.0,1.11070496]
[1646944818638,0.45589141,2605.5,2605.0,1.11070496]
[1646944818841,0.45589141,2605.5,2605.2,0.00414805]
[1646944819342,0.45589141,2605.5,2605.2,0.08794326]
[1646944819744,0.45589141,2605.5,2605.2,0.08379521]
[1646944819945,0.45589141,2605.5,2605.2,0.08793975]
[1646944822093,0.45589141,2605.5,2605.2,0.08379521]
[1646944822289,0.45589141,2605.5,2605.2,0.08793975]
[1646944822890,0.04943312,2605.7,2605.2,0.08793975]
[1646944823091,3.8,2605.5,2605.2,0.08793975]
[1646944823290,3.8,2605.5,2605.2,0.08379521]
[1646944823490,3.8,2605.5,2605.3,0.00414471]
[1646944824392,3.8,2605.5,2605.2,0.08379521]
[1646944824595,3.8,2605.5,2605.4,0.04230958]
[1646944824796,4.25643177,2605.5,2605.4,0.04230958]
[1646944826342,3.8,2605.5,2605.4,1.1544841]
[1646944827145,3.8,2605.5,2605.4,2.05345879]
[1646944829042,3.8,2605.5,2605.4,2.13614393]
[1646944831304,3.8,2605.5,2605.4,1.23716924]
[1646944831706,4.25661525,2605.5,2605.4,1.23716924]
[1646944831909,3.8,2605.5,2605.4,1.23716924]
[1646944832310,4.25677525,2605.5,2605.4,1.23716924]
[1646944833108,3.8,2605.5,2605.4,1.23716924]
[1646944833546,3.8,2605.5,2605.4,1.2785539]
[1646944833743,4.25691128,2605.5,2605.4,1.2785539]
[1646944833943,4.25691128,2605.5,2605.4,1.27773524]
[1646944834953,2.11327615,2605.5,2605.4,1.27773524]
[1646944835949,2.60195996,2605.5,2605.4,1.27773524]
[1646944836149,2.11327615,2605.5,2605.4,1.27773524]
[1646944836750,2.60209752,2605.5,2605.4,1.27773524]
[1646944837491,2.11327615,2605.5,2605.4,1.27773524]
[1646944838289,2.11327615,2605.5,2605.4,0.16556072]
[1646944838491,2.60014256,2605.5,2605.4,1.25061089]
[1646944842338,2.55014256,2605.5,2605.4,1.25061089]
[1646944843939,2.06327615,2605.5,2605.4,1.25061089]
[1646944846602,1.20574323,2606.2,2605.4,4.86593626]
[1646944846806,0.48681814,2606.1,2605.5,1.15707538]
[1646944847002,0.48681814,2606.1,2605.9,0.90626987]
[1646944847200,0.48681814,2606.1,2606.0,1.08505017]
[1646944847803,0.00414356,2606.2,2606.0,1.08505017]
[1646944848202,0.00414356,2606.2,2606.0,2.04465687]
[1646944848203,0.4909617,2606.2,2606.0,2.04465687]
[1646944848443,0.0496577,2606.5,2606.1,1.08505017]
[1646944848644,0.48686634,2606.4,2606.1,1.08505017]
[1646944848845,0.00414385,2606.2,2606.1,1.08505017]
[1646944849848,0.48686634,2606.4,2606.1,1.08505017]
[1646944850047,0.00414381,2606.3,2606.1,1.08505017]
[1646944850849,0.2437367,2607.0,2606.2,2.64828257]
[1646944851049,0.48724657,2606.9,2606.4,0.9594972]
[1646944851247,0.48724657,2606.9,2606.5,1.08505017]
[1646944852429,0.48724657,2606.9,2606.7,1.12826115]
[1646944852430,0.00414347,2606.8,2606.7,1.12826115]
[1646944852629,0.00414347,2606.8,2606.4,1.03372476]
[1646944852830,0.00414347,2606.8,2606.5,1.08466188]
[1646944853332,0.48724657,2606.8,2606.5,1.08466188]
[1646944853530,0.48724657,2606.7,2606.5,1.08466188]
[1646944853730,0.70782819,2607.0,2606.3,1.08343558]
[1646944853731,0.00414349,2606.8,2606.3,1.08343558]
[1646944853930,0.49139006,2606.8,2606.4,1.08474294]
[1646944854132,0.48724657,2606.7,2606.4,1.08474294]
[1646944854333,0.48724657,2606.6,2606.4,1.08474294]
[1646944854532,0.48724657,2606.5,2606.4,1.08474294]
[1646944854954,0.48724657,2606.5,2606.4,1.08452302]
[1646944855137,0.48724657,2606.6,2606.4,1.08452365]
[1646944855336,0.6732753,2606.3,2606.2,0.16534807]
[1646944855537,1.16052187,2606.3,2606.2,1.24958451]
[1646944855950,0.6732753,2606.3,2606.2,1.24958451]
[1646944856143,1.16019621,2606.3,2606.2,1.24958451]
[1646944857544,1.16019621,2606.3,2606.2,1.24858451]
[1646944858743,1.16019621,2606.3,2606.2,1.20756264]
[1646944860201,0.6732753,2606.3,2606.2,1.20756264]
[1646944861403,1.15993243,2606.3,2606.2,1.20756264]
[1646944861803,0.6732753,2606.3,2606.2,1.20756264]
[1646944863641,0.6732753,2606.3,2606.2,1.39936264]
[1646944863848,0.00387209,2606.4,2606.2,19.97420449]
[1646944864041,0.00387209,2606.4,2606.3,14.39837644]
[1646944864241,3.8,2606.9,2606.4,0.9592979]
[1646944864441,3.8,2606.9,2606.6,1.0]
[1646944864644,3.8,2606.9,2606.7,1.08423644]
[1646944865644,3.80222226,2606.9,2606.7,1.08423644]
[1646944866448,0.4735619,2606.8,2606.7,1.08423644]
[1646944867394,0.4735619,2606.8,2606.7,1.09509626]
[1646944867894,0.4735619,2606.8,2606.6,1.0]
[1646944868098,3.80446065,2606.9,2606.7,1.09509322]
[1646944868895,3.8,2606.9,2606.7,1.09509322]
[1646944869296,0.04710821,2606.8,2606.7,1.09509322]
[1646944869496,0.04710821,2606.8,2606.6,1.0]
[1646944870501,0.0515689,2606.8,2606.6,1.0]
[1646944871343,0.04710821,2606.8,2606.6,1.0]
[1646944871544,0.05124759,2606.8,2606.6,1.0]
[1646944871945,0.05124759,2606.8,2606.5,1.9185567]
[1646944872145,0.05124759,2606.8,2606.6,1.09412116]
[1646944872545,0.04710821,2606.8,2606.6,1.09412116]
[1646944873048,0.04710821,2606.8,2606.5,1.9185567]
[1646944873246,0.04710821,2606.8,2606.6,1.09409511]
[1646944873447,0.04710821,2606.8,2606.5,1.9185567]
[1646944873948,0.05125181,2606.8,2606.5,1.9185567]
[1646944874254,0.09362598,2606.8,2606.6,1.09398453]
[1646944874899,0.08948238,2606.8,2606.6,1.09398453]
[1646944875298,0.09375307,2606.8,2606.6,1.09398453]
[1646944876101,0.08948238,2606.8,2606.6,1.09398453]
[1646944876300,0.09375307,2606.8,2606.6,1.09398453]
[1646944876699,0.09375307,2606.8,2606.6,2.05332453]
[1646944876903,0.09375307,2606.8,2606.6,0.95934]
[1646944877300,0.08948238,2606.8,2606.6,0.95934]
[1646944877500,0.09375307,2606.8,2606.6,0.95934]
[1646944878105,0.05180536,2607.4,2606.9,1.6858207]
[1646944878357,2.97839288,2607.7,2607.0,6.10187933]
[1646944878358,0.47276248,2607.3,2607.0,6.10187933]
[1646944878545,2.0252,2607.7,2607.0,1.50806324]
[1646944878745,0.4727524,2607.6,2607.0,5.00806324]
[1646944879345,0.4727524,2607.6,2607.4,1.08868395]
[1646944879748,0.4727524,2607.5,2607.4,1.08868395]
[1646944879949,0.4727524,2607.7,2607.2,0.95909]
[1646944880150,0.4727524,2607.6,2607.2,0.95909]
[1646944880350,0.25,2607.8,2607.2,0.95909]
[1646944880351,0.4727524,2607.5,2607.2,0.95909]
[1646944880551,0.4727524,2607.4,2607.1,0.06961942]
[1646944880750,0.25,2607.8,2607.1,0.06961942]
[1646944880950,0.4726046,2607.7,2607.3,1.21961451]
[1646944881557,0.4726046,2607.6,2607.3,1.21961451]
[1646944881755,0.04344804,2607.9,2607.3,1.21961451]
[1646944881958,0.4724776,2607.8,2607.3,1.21961451]
[1646944882408,0.00250793,2607.7,2607.3,1.21961451]
[1646944882609,0.00250793,2607.7,2607.4,3.5]
[1646944882808,0.00250793,2607.7,2607.3,1.21961451]
[1646944883209,0.4724776,2607.8,2607.3,2.17869581]
[1646944883409,0.4724776,2607.8,2607.3,1.9181713]
[1646944883612,0.4724776,2607.8,2607.3,0.9590813]
[1646944883613,0.00425538,2607.6,2607.3,0.9590813]
[1646944883811,0.4724776,2607.5,2607.3,0.9590813]
[1646944884817,0.00425545,2607.5,2607.3,0.9590813]
[1646944885217,0.00425545,2607.5,2607.3,4.4590813]
[1646944885416,0.00425545,2607.5,2607.3,0.9590813]
[1646944885854,1.02481313,2607.8,2607.3,0.9590813]
[1646944886041,0.00425545,2607.5,2607.3,0.9590813]
[1646944886642,0.47250493,2607.4,2607.0,0.1917]
[1646944887043,0.52368818,2607.4,2607.0,0.1917]
[1646944887243,0.47273826,2607.3,2607.0,0.1917]
[1646944888045,0.05118325,2607.4,2607.0,0.1917]
[1646944888249,1.2111,2607.7,2607.1,1.09389464]
[1646944888250,0.04960136,2607.6,2607.1,1.09389464]
[1646944888447,0.04729185,2607.4,2607.1,1.09389464]
[1646944888650,0.00416474,2607.3,2607.1,1.09389464]
[1646944889448,0.0420725,2607.6,2607.1,1.09389464]
[1646944889695,0.00416471,2607.3,2607.1,1.09389464]
[1646944890294,0.00416471,2607.3,2607.1,2.05317454]
[1646944890497,0.47288878,2607.4,2607.1,0.9592799]
[1646944890795,0.00417086,2607.3,2607.1,0.9592799]
[1646944890995,0.00417086,2607.3,2607.2,1.09463371]
[1646944891797,0.47288878,2607.4,2607.2,1.09463371]
[1646944891995,0.47705961,2607.4,2607.2,1.09463371]
[1646944892195,0.47705961,2607.4,2607.0,3.6917]
[1646944892396,0.47705961,2607.4,2607.1,1.09537651]
[1646944892599,0.47705961,2607.4,2607.1,2.05464071]
[1646944892797,0.47705961,2607.4,2607.2,1.09537651]
[1646944892997,0.47288878,2607.4,2607.2,1.09537651]
[1646944893197,0.47705961,2607.4,2607.2,1.09537651]
[1646944893851,0.47705961,2607.4,2607.2,3.01369471]
[1646944894049,0.47705961,2607.4,2607.3,1.09537651]
[1646944894251,0.47288878,2607.4,2607.3,1.09537651]
[1646944894450,0.47705916,2607.4,2607.3,1.09537651]
[1646944895456,0.47288878,2607.4,2607.3,1.09537651]
[1646944895658,0.47288878,2607.4,2607.2,2.8774717]
[1646944895857,0.47288878,2607.4,2607.3,1.09626491]
[1646944896659,0.47288878,2607.4,2607.2,2.8774717]
[1646944897191,0.47288878,2607.4,2607.3,1.09626914]
[1646944897492,0.05564243,2607.5,2607.3,1.09626914]
[1646944897691,0.05147208,2607.5,2607.3,1.09626914]
[1646944898093,0.05565426,2607.5,2607.3,1.09626914]
[1646944898292,0.0541166,2607.8,2607.5,1.09876494]
[1646944898492,0.47427681,2607.7,2607.6,1.09626914]
[1646944898691,0.47427681,2607.7,2607.5,2.05786564]
[1646944899094,0.47427681,2607.6,2607.5,2.05786564]
[1646944899294,0.47427681,2607.6,2607.5,3.15307698]
[1646944899896,0.47427681,2607.8,2607.5,3.15307698]
[1646944900097,0.47427681,2607.7,2607.6,1.09521134]
[1646944900297,0.47427681,2607.8,2607.6,1.09521134]
[1646944900500,0.47427681,2607.7,2607.6,1.09521134]
[1646944900697,0.47427681,2608.0,2607.6,1.09521134]
[1646944901546,0.00447217,2607.9,2607.6,1.09521134]
[1646944901743,0.47427681,2607.8,2607.6,1.09521134]
[1646944901950,0.47427681,2607.7,2607.6,1.09521134]
[1646944902148,0.00447217,2607.9,2607.6,1.09521134]
[1646944902149,0.00447217,2607.9,2607.6,2.05419134]
[1646944902344,0.47427681,2607.8,2607.7,1.09521134]
[1646944902543,0.47427681,2607.8,2607.7,2.05417854]
[1646944902947,0.0044722,2607.9,2607.7,2.05417854]
[1646944903149,0.47427681,2607.8,2607.7,0.9589672]
[1646944903346,0.47427681,2607.8,2607.7,2.05488214]
[1646944904350,0.0044722,2607.9,2607.7,2.05488214]
[1646944904594,0.47427681,2607.8,2607.7,0.9589672]
[1646944904805,0.0044722,2607.9,2607.7,2.05490249]
[1646944905002,0.47427681,2607.8,2607.7,0.9589672]
[1646944905302,0.47427681,2607.8,2607.7,2.05489619]
[1646944905502,0.0044722,2607.9,2607.7,2.05489619]
[1646944905707,0.0044722,2607.9,2607.7,0.9589672]
[1646944905708,0.47427681,2607.8,2607.7,0.9589672]
[1646944906103,0.47427681,2608.0,2607.7,2.05470335]
[1646944906303,0.47427681,2608.0,2607.8,1.09573615]
[1646944906504,0.00432462,2607.9,2607.8,1.09573615]
[1646944906904,0.47860143,2607.9,2607.8,1.09573306]
[1646944907104,0.00432462,2607.9,2607.8,1.09573306]
[1646944907305,0.47460592,2607.9,2607.8,4.59573306]
[1646944907504,0.05057426,2608.4,2607.9,1.0]
[1646944907704,0.00250466,2608.0,2607.9,5.6662]
[1646944908004,0.00250466,2608.0,2607.9,6.77068856]
[1646944908447,0.4658338,2608.3,2607.9,6.77068856]
[1646944908648,0.4658338,2608.3,2608.0,1.10448856]
[1646944908845,0.4658338,2608.3,2608.1,3.5]
[1646944909047,4.0867,2608.7,2608.2,1.10448856]
[1646944909248,0.46571252,2608.6,2608.3,0.96227191]